[Event "44th Chess Olympiad Women 2022"]
[Site "Chennai"]
[Date "2022.08.02"]
[Round "5.42"]
[White "Caxita, Esperanca"]
[Black "Lohani, Sujana"]
[Result "1-0"]
[ECO "B07"]
[WhiteElo "1955"]
[BlackElo "1697"]
[Annotator "TA"]
[PlyCount "119"]
[EventDate "2022.07.29"]
[EventType "team-tourn"]
[EventCountry "IND"]
[SourceTitle "playchess.com"]
[Source "ChessBase"]
[SourceQuality "1"]
[WhiteTeam "Angola"]
[BlackTeam "Nepal"]
[WhiteTeamCountry "ANG"]
[BlackTeamCountry "NEP"]
[TimeControl "40/5400+30:1800+30"]

{[%evp 12,119,22,10,14,18,23,-18,17,25,49,0,5,0,58,31,21,-23,-10,-53,43,33,40,29,64,41,87,71,104,39,30,23,45,28,39,-16,-2,-59,-34,-139,-150,-158,-158,-178,-166,-177,-164,-125,-97,-93,25,19,16,14,12,-56,98,0,0,0,0,0,33,35,27,36,45,0,0,0,0,0,0,0,8,10,29,16,110,105,104,60,63,55,188,178,184,172,185,185,188,182,208,118,118,123,235,212,296,325,1480,1356,29962,29948,29952,29953,12802,6250,29986,29987]} 1. e4 {[%emt 0:00:06]} g6 {[%emt 0:00:28]} 2. d4 {[%emt 0:00:20]} Bg7 {[%emt 0:00:06]} 3. c3 {[%emt 0:00:46]} d6 {[%emt 0:01:02]} 4. Nf3 {[%emt 0:00:26]} Nf6 {[%emt 0:01:25]} 5. Nbd2 {[%emt 0:00:23]} O-O {[%emt 0:03:02]} 6. Be2 {[%emt 0:05:15]} c5 {[%emt 0:01:20]} 7. O-O {[%emt 0:01:41]} cxd4 {[%emt 0:03:18] B07: Pirc Defence: Miscellaneous Systems.} 8. cxd4 {[%emt 0:00:19]} Nc6 {[%emt 0:05:06]} 9. b3 {[%emt 0:01:49] [#]} e5 $146 {[%emt 0:07:45] The position is equal.} ({Predecessor:} 9... Bg4 10. Bb2 Bxf3 11. Bxf3 Nd7 12. Nc4 b5 13. Ne3 Rc8 14. Rc1 e5 15. dxe5 Ndxe5 16. Bxe5 dxe5 17. Qxd8 Rfxd8 18. Bg4 f5 19. exf5 h5 20. Bh3 Rd6 21. f6 {1-0 (21) Puuska,H (1990)-Ahlqvist,E (1897) Finland 2019}) 10. d5 {[%emt 0:00:46]} Ne7 {[%emt 0:03:47]} 11. Ba3 {[%emt 0:00:58]} (11. a4 $14 {deserves consideration.}) 11... a6 {[%emt 0:01:32]} 12. Rc1 {[%emt 0:02:23]} h6 {[%emt 0:02:39]} (12... Ne8 $11) 13. Qc2 {[%emt 0:00:38]} Ne8 {[%emt 0:02:57] Prevents Qc7.} 14. Ne1 {[%emt 0:14:02]} f5 {[%emt 0:03:52]} 15. f3 {[%emt 0:01:13]} f4 {[%emt 0:02:41]} (15... b5 $15) 16. Nd3 {[%emt 0:02:54]} g5 {[%emt 0:01:53]} 17. Nf2 {[%emt 0:03:21]} Rf6 {[%emt 0:03:08]} 18. Qc3 {[%emt 0:03:45]} h5 {[%emt 0:02:08]} (18... Bd7 $14) 19. Nc4 $16 {[%emt 0:02:11]} b5 {[%emt 0:09:54]} 20. Na5 {[%emt 0:02:28] White is more active.} (20. Qa5 $16 Qxa5 21. Nxa5) 20... Rg6 {[%emt 0:02:50]} 21. h3 {[%emt 0:01:00] Against g4} Bf8 {[%emt 0:01:06]} (21... Bf6 {is interesting.} 22. Rfd1 Qb6 23. Nc6 Bd7) 22. Bb4 {[%emt 0:00:57]} Bd7 {[%emt 0:04:20]} 23. Qd2 {[%emt 0:05:24]} (23. Nc6 $14 Qb6 24. Ba5) 23... Qb6 $11 {[%emt 0:04:56]} 24. Kh2 {[%emt 0:01:02]} (24. Qc3 $11) 24... Nf6 $15 {[%emt 0:01:22]} 25. Qd1 {[%emt 0:06:58]} ({Better is} 25. Qe1 $15) 25... g4 $1 $17 {[%emt 0:01:19] And now ...g3+ would win.} 26. fxg4 {[%emt 0:01:14]} hxg4 {[%emt 0:00:07]} (26... Qe3 27. Rc3 Qb6 28. gxh5 $18) 27. Bxg4 {[%emt 0:07:07]} Bxg4 {[%emt 0:00:11]} (27... Qe3 28. Bf3 Qb6 29. Kh1 $16) 28. hxg4 {[%emt 0:00:34]} Rh6+ {[%emt 0:00:45]} 29. Nh3 {[%emt 0:00:20]} Nxe4 {[%emt 0:01:00]} 30. Nc6 {[%emt 0:08:32][%cal Og4g5]} Nf2 {[%emt 0:12:04]} (30... a5 $17 31. Be1 Ng5) 31. Qf3 $11 {[%emt 0:05:22] Chess con chili.} Nxh3 {[%emt 0:03:57]} ({But not} 31... Nxc6 32. dxc6 Nxh3 33. gxh3 $16) 32. gxh3 {[%emt 0:01:14]} Ng6 $1 {[%emt 0:00:30]} 33. Be1 {[%emt 0:02:58]} (33. g5 $11 Rh7 34. Qd3) 33... Re8 $2 {[%emt 0:00:40]} (33... Qc7 $15 {keeps the upper hand.}) 34. Qe4 {[%emt 0:01:36]} (34. g5 $1 $16 {[%cal Rg5h6]} Rh7 35. Qe4) 34... Qe3 $1 {[%emt 0:04:23]} 35. Qxe3 {[%emt 0:07:41]} fxe3 {[%emt 0:00:06]} 36. Bg3 {[%emt 0:00:36] Against Nf4} Rh7 {[%emt 0:01:52][%cal Og6f4]} 37. Rce1 {[%emt 0:01:10]} Bh6 {[%emt 0:00:33]} 38. Rf6 {[%emt 0:00:40][%csl LRd6,LRg6]} Nf4 {[%emt 0:03:25]} 39. Rxd6 {[%emt 0:01:50]} (39. Bxf4 $5 Bxf4+ 40. Kg2 $14) 39... Bf8 {[%emt 0:00:29][%csl LRd6,LRh3]} 40. Bxf4 {[%emt 0:02:15]} Bxd6 {[%emt 0:00:53]} 41. Bxe3 {[%emt 0:30:20]} e4+ {[%emt 0:31:34]} 42. Kg2 {[%emt 0:00:19]} Rf8 {[%emt 0:00:39]} 43. Nd4 {[%emt 0:02:35] Against Rf3} Rc7 {[%emt 0:04:12]} 44. Re2 {[%emt 0:00:47]} Rc3 {[%emt 0:00:00]} (44... Rfc8 $1 $11 {remains equal.}) 45. Nf5 $16 {[%emt 0:00:00]} Rd8 {[%emt 0:00:00]} 46. Bd4 {[%emt 0:00:00]} Rd3 {[%emt 0:00:00]} 47. Rxe4 {[%emt 0:00:00] Threatens to win with Re6.} Rd2+ {[%emt 0:00:00]} (47... Bf8 $14) 48. Kf3 $18 {[%emt 0:00:00] Hoping for Re6.} Bf8 {[%emt 0:00:00]} 49. Re6 $1 {[%emt 0:00:00]} Rxd5 {[%emt 0:00:00]} 50. Ke4 {[%emt 0:00:00]} ({And not} 50. Rxa6 Rxf5+ $1 51. gxf5 Rxd4 $15) 50... Rd7 {[%emt 0:00:00]} 51. Rxa6 {[%emt 0:00:00]} Rg2 {[%emt 0:00:00]} 52. a4 {[%emt 0:00:00]} (52. Kf3 $18 Rd2 53. Be3) 52... bxa4 $16 {[%emt 0:00:00]} 53. bxa4 {[%emt 0:00:00][%cal Bb3a4,Ba4a5][%mdl 32]} Rh7 {[%emt 0:00:00]} (53... Rc2 $16 {was worth a try.}) 54. Kf3 $18 {[%emt 0:00:00]} Rh2 {[%emt 0:00:00] [#]} 55. h4 {[%emt 0:00:00]} R7xh4 $2 {[%emt 0:00:30]} (55... Rd7 56. h5 Rh1) 56. Nxh4 {[%emt 0:00:00] aiming for Nf5.} Rxh4 {[%emt 0:00:04]} 57. a5 {[%emt 0:00:00]} Rh3+ {[%emt 0:00:32]} 58. Ke4 {[%emt 0:00:06]} Ra3 {[%emt 0:01:15]} 59. Ra8 {[%emt 0:00:36]} Kf7 {[%emt 0:00:23] [#]} 60. Rxf8+ $1 {[%emt 0:00:37] White used his chance.  Weighted Error Value: White=0.22 (precise) /Black=0.55} 1-0

[Event "44th Chess Olympiad Women 2022"]
[Site "Chennai"]
[Date "2022.08.02"]
[Round "5.42"]
[White "Paulo, Jemima"]
[Black "Dhimal, Shanti"]
[Result "1-0"]
[ECO "A29"]
[WhiteElo "1850"]
[BlackElo "1499"]
[Annotator "NA RC COMBH"]
[PlyCount "77"]
[EventDate "2022.07.29"]
[EventType "team-tourn"]
[EventCountry "IND"]
[SourceTitle "playchess.com"]
[Source "ChessBase"]
[SourceQuality "1"]
[WhiteTeam "Angola"]
[BlackTeam "Nepal"]
[WhiteTeamCountry "ANG"]
[BlackTeamCountry "NEP"]
[TimeControl "40/5400+30:1800+30"]

1. c4 {[%emt 0:00:03]} e5 {[%emt 0:00:25]} 2. Nc3 {[%emt 0:00:59]} Nf6 {[%emt 0:00:24]} 3. Nf3 {[%emt 0:01:45]} Nc6 {[%emt 0:00:17]} 4. g3 {[%emt 0:00:08]} d5 {[%emt 0:00:26]} 5. cxd5 {[%emt 0:05:00]} Nxd5 {[%emt 0:00:16]} 6. Qb3 {[%emt 0:03:47]} Nb6 {[%emt 0:01:30]} 7. Bg2 {[%emt 0:02:33]} Be7 {[%emt 0:00:45]} 8. O-O {[%emt 0:00:12]} O-O {[%emt 0:00:12]} 9. d3 {[%emt 0:01:14]} Be6 {[%emt 0:00:42]} 10. Qc2 {[%emt 0:00:10]} f6 {[%emt 0:00:59]} 11. Be3 {[%emt 0:02:49]} Qd7 {[%emt 0:03:37]} 12. Rfd1 {[%emt 0:00:42]} Nd4 {[%emt 0:03:15]} 13. Bxd4 {[%emt 0:00:25]} exd4 {[%emt 0:00:19]} 14. Ne4 {[%emt 0:00:09]} Rad8 {[%emt 0:03:03]} 15. Rdc1 {[%emt 0:03:44]} c6 {[%emt 0:00:57]} 16. Nc5 {[%emt 0:00:46]} Qc8 {[%emt 0:03:36]} 17. b4 {[%emt 0:06:19]} Bf7 {[%emt 0:01:41]} 18. Qb2 {[%emt 0:02:30]} Bxc5 {[%emt 0:02:03]} 19. bxc5 {[%emt 0:00:09]} Na4 {[%emt 0:01:29]} 20. Qc2 {[%emt 0:01:50]} Nc3 {[%emt 0:02:50]} 21. Nxd4 {[%emt 0:00:18]} Nxa2 {[%emt 0:02:30]} 22. Rxa2 {[%emt 0:00:07]} Rxd4 {[%emt 0:01:36]} 23. Rxa7 {[%emt 0:00:07]} Qb8 {[%emt 0:05:43]} 24. Rca1 {[%emt 0:00:41]} Rb4 {[%emt 0:01:13]} 25. Be4 {[%emt 0:02:18]} g6 {[%emt 0:03:45]} 26. Qc3 {[%emt 0:00:18]} Rb5 {[%emt 0:01:18]} 27. d4 {[%emt 0:04:55]} f5 {[%emt 0:01:51]} 28. Bd3 {[%emt 0:00:37]} Rb3 {[%emt 0:00:51]} 29. Qc2 {[%emt 0:00:59]} f4 {[%emt 0:00:13]} 30. Bc4 {[%emt 0:00:32]} fxg3 {[%emt 0:08:05]} 31. Bxf7+ {[%emt 0:00:45]} Rxf7 {[%emt 0:00:17]} 32. Ra8 {[%emt 0:00:26]} gxf2+ {[%emt 0:04:28]} 33. Kf1 {[%emt 0:00:16]} Rh3 {[%emt 0:01:22]} 34. Rxb8+ {[%emt 0:00:08]} Kg7 {[%emt 0:00:37]} 35. Qe4 {[%emt 0:00:09]} Rh5 {[%emt 0:02:58]} 36. Ra3 {[%emt 0:01:27]} g5 {[%emt 0:01:23]} 37. Qe5+ {[%emt 0:01:41]} Kh6 {[%emt 0:00:42]} 38. Qe6+ {[%emt 0:00:23]} Kg7 {[%emt 0:00:32]} 39. Raa8 {[%emt 0:00:09]} 1-0

[Event "44th Chess Olympiad Women 2022"]
[Site "Chennai"]
[Date "2022.08.02"]
[Round "5.42"]
[White "Kapali, Binita"]
[Black "Pires, Luzia"]
[Result "0-1"]
[ECO "B23"]
[WhiteElo "1511"]
[BlackElo "1842"]
[Annotator "NA RC COMBH"]
[PlyCount "84"]
[EventDate "2022.07.29"]
[EventType "team-tourn"]
[EventCountry "IND"]
[SourceTitle "playchess.com"]
[Source "ChessBase"]
[SourceQuality "1"]
[WhiteTeam "Nepal"]
[BlackTeam "Angola"]
[WhiteTeamCountry "NEP"]
[BlackTeamCountry "ANG"]
[TimeControl "40/5400+30:1800+30"]

1. e4 {[%emt 0:00:02]} c5 {[%emt 0:00:50]} 2. Nc3 {[%emt 0:03:25]} d6 {[%emt 0:00:01]} 3. Bb5+ {[%emt 0:00:59]} Bd7 {[%emt 0:00:25]} 4. Bc4 {[%emt 0:00:16]} Nf6 {[%emt 0:00:25]} 5. d3 {[%emt 0:01:51]} g6 {[%emt 0:00:15]} 6. f4 {[%emt 0:02:47]} Nc6 {[%emt 0:02:34]} 7. Nge2 {[%emt 0:05:57]} Bg7 {[%emt 0:00:21]} 8. O-O {[%emt 0:03:24]} O-O {[%emt 0:04:49]} 9. Ng3 {[%emt 0:01:56]} Na5 {[%emt 0:01:11]} 10. Bb5 {[%emt 0:01:15]} Bg4 {[%emt 0:12:11]} 11. Qe1 {[%emt 0:02:17]} a6 {[%emt 0:00:27]} 12. Ba4 {[%emt 0:00:22]} b5 {[%emt 0:03:18]} 13. Bb3 {[%emt 0:01:04]} Nxb3 {[%emt 0:00:03]} 14. axb3 {[%emt 0:00:13]} Bd7 {[%emt 0:00:20]} 15. f5 {[%emt 0:00:38]} Bc6 {[%emt 0:01:45]} 16. Nce2 {[%emt 0:05:30]} Ng4 {[%emt 0:03:53]} 17. Nf4 {[%emt 0:05:03]} b4 {[%emt 0:24:46]} 18. fxg6 {[%emt 0:05:17]} hxg6 {[%emt 0:00:40]} 19. Qd1 {[%emt 0:03:26]} Bd4+ {[%emt 0:00:48]} 20. Kh1 {[%emt 0:01:44]} Nf2+ {[%emt 0:00:31]} 21. Rxf2 {[%emt 0:00:27]} Bxf2 {[%emt 0:00:03]} 22. Qg4 {[%emt 0:00:51]} Bd7 {[%emt 0:02:10]} 23. Nf5 {[%emt 0:01:17]} Bxf5 {[%emt 0:00:50]} 24. exf5 {[%emt 0:00:32]} Bd4 {[%emt 0:06:33]} 25. fxg6 {[%emt 0:13:22]} fxg6 {[%emt 0:06:28]} 26. Qxg6+ {[%emt 0:01:14]} Bg7 {[%emt 0:00:17]} 27. Bd2 {[%emt 0:05:50]} Rf6 {[%emt 0:00:52]} 28. Qg4 {[%emt 0:00:58]} Qc8 {[%emt 0:00:33]} 29. Qg3 {[%emt 0:01:59]} Qf5 {[%emt 0:02:00]} 30. c3 {[%emt 0:06:53]} e5 {[%emt 0:01:49]} 31. Ne2 {[%emt 0:01:19]} Rg6 {[%emt 0:02:56]} 32. Qh4 {[%emt 0:01:15]} Rf8 {[%emt 0:01:19]} 33. Qc4+ {[%emt 0:00:28]} Kh7 {[%emt 0:00:09]} 34. Ng3 {[%emt 0:01:28]} Qf2 {[%emt 0:05:40]} 35. Qh4+ {[%emt 0:01:16]} Kg8 {[%emt 0:00:31]} 36. Qc4+ {[%emt 0:00:34]} Kh7 {[%emt 0:00:20]} 37. Qh4+ {[%emt 0:00:25]} Bh6 {[%emt 0:00:05]} 38. Bxh6 {[%emt 0:00:27]} Rxh6 {[%emt 0:00:11]} 39. Qe4+ {[%emt 0:00:42]} Kh8 {[%emt 0:00:22]} 40. Ne2 {[%emt 0:01:06]} Rh4 {[%emt 0:01:19]} 41. Qd5 {[%emt 0:39:21]} Qxe2 {[%emt 0:30:28]} 42. Qxd6 {[%emt 0:00:12]} Rf1+ {[%emt 0:00:08]} 0-1

[Event "44th Chess Olympiad Women 2022"]
[Site "Chennai"]
[Date "2022.08.02"]
[Round "5.42"]
[White "Neupane, Anisha"]
[Black "Antonio, Renelsa Taiane"]
[Result "1-0"]
[ECO "C45"]
[WhiteElo "1488"]
[BlackElo "1471"]
[Annotator "NA RC COMBH"]
[PlyCount "121"]
[EventDate "2022.07.29"]
[EventType "team-tourn"]
[EventCountry "IND"]
[SourceTitle "playchess.com"]
[Source "ChessBase"]
[SourceQuality "1"]
[WhiteTeam "Nepal"]
[BlackTeam "Angola"]
[WhiteTeamCountry "NEP"]
[BlackTeamCountry "ANG"]
[TimeControl "40/5400+30:1800+30"]

1. e4 {[%emt 0:00:04]} e5 {[%emt 0:00:15]} 2. Nf3 {[%emt 0:00:13]} Nc6 {[%emt 0:00:31]} 3. d4 {[%emt 0:00:25]} exd4 {[%emt 0:00:38]} 4. Nxd4 {[%emt 0:00:25]} Qf6 {[%emt 0:00:33]} 5. Nf3 {[%emt 0:04:54]} Bb4+ {[%emt 0:04:06]} 6. c3 {[%emt 0:05:05]} Ba5 {[%emt 0:02:36]} 7. Be3 {[%emt 0:05:35]} d6 {[%emt 0:03:32]} 8. Nbd2 {[%emt 0:03:48]} Bb6 {[%emt 0:02:49]} 9. Qe2 {[%emt 0:04:33]} Bxe3 {[%emt 0:03:12]} 10. Qxe3 {[%emt 0:00:24]} Be6 {[%emt 0:01:48]} 11. Ng5 {[%emt 0:04:42]} h6 {[%emt 0:02:45]} 12. Nxe6 {[%emt 0:00:21]} fxe6 {[%emt 0:00:10]} 13. O-O-O {[%emt 0:01:50]} Nge7 {[%emt 0:00:25]} 14. f3 {[%emt 0:03:16]} O-O {[%emt 0:01:21]} 15. h4 {[%emt 0:02:01]} Ne5 {[%emt 0:00:35]} 16. Be2 {[%emt 0:03:30]} Qf4 {[%emt 0:04:32]} 17. Qxf4 {[%emt 0:05:22]} Rxf4 {[%emt 0:00:11]} 18. g3 {[%emt 0:00:08]} Rf6 {[%emt 0:00:41]} 19. f4 {[%emt 0:01:59]} Nd7 {[%emt 0:01:56]} 20. h5 {[%emt 0:03:54]} Kh8 {[%emt 0:13:33]} 21. Nf3 {[%emt 0:08:00]} Nc5 {[%emt 0:07:41]} 22. e5 {[%emt 0:09:12]} dxe5 {[%emt 0:03:58]} 23. Nxe5 {[%emt 0:00:48]} Nf5 {[%emt 0:03:20]} 24. Rhg1 {[%emt 0:04:02]} Nd6 {[%emt 0:02:52]} 25. Ng6+ {[%emt 0:06:23]} Kh7 {[%emt 0:01:43]} 26. Kc2 {[%emt 0:04:43]} Rxg6 {[%emt 0:05:32]} 27. hxg6+ {[%emt 0:00:31]} Kxg6 {[%emt 0:00:06]} 28. b4 {[%emt 0:00:17]} Nd7 {[%emt 0:01:39]} 29. c4 {[%emt 0:02:06]} b6 {[%emt 0:00:17]} 30. g4 {[%emt 0:01:47]} Rf8 {[%emt 0:01:35]} 31. Bd3+ {[%emt 0:01:03]} Kf7 {[%emt 0:01:19]} 32. g5 {[%emt 0:01:02]} h5 {[%emt 0:04:11]} 33. g6+ {[%emt 0:00:50]} Ke7 {[%emt 0:00:10]} 34. Rdf1 {[%emt 0:00:40]} Nf5 {[%emt 0:00:41]} 35. Kc3 {[%emt 0:01:59]} Ne3 {[%emt 0:07:18]} 36. Re1 {[%emt 0:04:08]} Nf5 {[%emt 0:01:09]} 37. Rg5 {[%emt 0:01:26]} Kf6 {[%emt 0:01:36]} 38. Rh1 {[%emt 0:02:41]} h4 {[%emt 0:03:16]} 39. Bxf5 {[%emt 0:01:23]} exf5 {[%emt 0:00:07]} 40. Rxh4 {[%emt 0:00:24]} Ne5 {[%emt 0:00:27]} 41. Rhh5 {[%emt 0:31:49]} Nxg6 {[%emt 0:31:01]} 42. Rxf5+ {[%emt 0:00:34]} Ke6 {[%emt 0:01:33]} 43. Rxf8 {[%emt 0:00:37]} Nxf8 {[%emt 0:00:04]} 44. Kd4 {[%emt 0:00:15]} c6 {[%emt 0:04:11]} 45. Re5+ {[%emt 0:02:06]} Kd7 {[%emt 0:01:24]} 46. Rg5 {[%emt 0:01:36]} Ne6+ {[%emt 0:00:02]} 47. Ke5 {[%emt 0:00:12]} Nxg5 {[%emt 0:00:27]} 48. fxg5 {[%emt 0:00:06]} Ke7 {[%emt 0:00:18]} 49. a3 {[%emt 0:00:00]} g6 {[%emt 0:00:00]} 50. a4 {[%emt 0:00:00]} a6 {[%emt 0:00:00]} 51. a5 {[%emt 0:00:00]} b5 {[%emt 0:00:00]} 52. c5 {[%emt 0:00:00]} Ke8 {[%emt 0:00:00]} 53. Kd6 {[%emt 0:00:00]} Kf7 {[%emt 0:00:00]} 54. Kxc6 {[%emt 0:00:00]} Ke6 {[%emt 0:00:00]} 55. Kb7 {[%emt 0:00:00]} Kd5 {[%emt 0:00:00]} 56. c6 {[%emt 0:00:00]} Kc4 {[%emt 0:00:00]} 57. c7 {[%emt 0:00:00]} Kxb4 {[%emt 0:00:00]} 58. Kxa6 {[%emt 0:00:00]} Ka4 {[%emt 0:00:00]} 59. c8=Q {[%emt 0:00:00]} b4 {[%emt 0:00:00]} 60. Qc2+ {[%emt 0:00:00]} b3 {[%emt 0:00:00]} 61. Qxg6 {[%emt 0:00:00]} 1-0

[Event "44th Chess Olympiad Women 2022"]
[Site "Chennai"]
[Date "2022.08.02"]
[Round "5.43"]
[White "Henderson de La Fuente, Andrea"]
[Black "Shabanaj, Eglantina"]
[Result "1-0"]
[ECO "B26"]
[WhiteElo "1962"]
[BlackElo "1940"]
[Annotator "TA"]
[PlyCount "79"]
[EventDate "2022.07.29"]
[EventType "team-tourn"]
[EventCountry "IND"]
[SourceTitle "playchess.com"]
[Source "ChessBase"]
[SourceQuality "1"]
[WhiteTeam "Andorra"]
[BlackTeam "Albania"]
[WhiteTeamCountry "AND"]
[BlackTeamCountry "ALB"]
[TimeControl "40/5400+30:1800+30"]

{[%evp 15,79,-6,-4,-31,-27,-35,12,15,24,12,10,6,21,20,24,0,0,-18,-21,-50,-34,-52,-50,-44,53,-210,19,23,51,17,22,45,46,-16,-20,-74,-72,-65,-75,-95,403,382,397,391,375,390,829,825,814,788,872,871,1072,920,775,760,907,906,1126,1119,1755,1712,5357,5322,1918,1645]} 1. e4 {[%emt 0:00:04]} e6 {[%emt 0:00:05]} 2. d3 {[%emt 0:02:20]} c5 {[%emt 0:00:06]} 3. g3 {[%emt 0:00:24]} Nc6 {[%emt 0:00:12]} 4. Bg2 {[%emt 0:00:45]} g6 {[%emt 0:00:08]} 5. Be3 {[%emt 0:00:23]} Bg7 {[%emt 0:00:34]} 6. Nc3 {[%emt 0:00:11]} d6 {[%emt 0:00:09]} 7. Qd2 {[%emt 0:00:12]} Nge7 {[%emt 0:04:51]} 8. Nge2 {[%emt 0:00:59]} Nd4 {[%emt 0:03:21]} 9. Nc1 {[%emt 0:06:04] B26: Closed Sicilian: 3 g3, lines with early Be3.} Rb8 {[%emt 0:03:19]} 10. Nd1 {[%emt 0:00:46]} b5 {[%emt 0:03:25]} (10... h5 $15 {feels stronger.}) 11. c3 $11 {[%emt 0:00:32] The position is equal.} Ndc6 {[%emt 0:00:16]} 12. Bh6 {[%emt 0:01:38]} O-O {[%emt 0:03:12]} 13. h4 {[%emt 0:13:15][%cal Bh2h4,Bh4h5,Bh5h6][%mdl 32]} f6 {[%emt 0:10:28]} 14. Bxg7 {[%emt 0:09:18]} Kxg7 {[%emt 0:00:09]} 15. h5 {[%emt 0:07:37]} g5 {[%emt 0:03:18] [#]} 16. h6+ $146 {[%emt 0:07:00]} ({Predecessor:} 16. f4 h6 17. Ne3 b4 18. Ne2 bxc3 19. bxc3 Bd7 20. O-O Qb6 21. Rf2 Na5 22. Rc1 {½-½ (50) McLaren,B-Patterson,R (2173) Richmond 2002}) 16... Kh8 {[%emt 0:02:06]} 17. f4 {[%emt 0:03:32]} Rg8 {[%emt 0:01:56]} 18. Ne3 {[%emt 0:11:19][%cal Bd1e3,Be3g4,Bg4f6][%mdl 32]} d5 {[%emt 0:05:39]} 19. Ng4 {[%emt 0:09:04]} Ng6 {[%emt 0:05:24]} ({Better is} 19... gxf4 $15 20. Qxf4 Rf8) 20. e5 $2 {[%emt 0:00:45][%mdl 8192]} (20. fxg5 $14 fxg5 21. O-O) 20... fxe5 $2 {[%emt 0:06:37]} ({Black should play} 20... gxf4 $19 21. Nxf6 f3) 21. fxg5 {[%emt 0:00:07]} Nce7 {[%emt 0:01:30][%cal Bc6e7,Be7f5,Bf5d6,Bd6f7][%mdl 32]} 22. Qf2 {[%emt 0:10:35] [#] Threatening mate with Qf6+.} Nf5 {[%emt 0:01:14]} 23. Nf6 $36 {[%emt 0:00:21][%mdl 2048] White is more active.} Rf8 {[%emt 0:01:03]} 24. g4 {[%emt 0:01:11]} ({White must play} 24. O-O $1 $14) 24... Nd6 {[%emt 0:02:36]} 25. Qxc5 {[%emt 0:00:09] [#]} (25. O-O $1 $11) 25... Nf7 $1 $17 {[%emt 0:02:33]} 26. Ne2 {[%emt 0:05:56]} Nxg5 {[%emt 0:01:42]} 27. Nh5 {[%emt 0:00:10]} Nh4 $2 {[%emt 0:10:11][%mdl 8192]} 28. Rxh4 $18 {[%emt 0:01:49]} Nf3+ {[%emt 0:00:25]} 29. Bxf3 {[%emt 0:01:33] Strongly threatening Rh3.} ({But not} 29. Kd1 $2 Nxh4 30. Bh3 (30. Qxa7 $2 Rb7 $19) 30... Rb7 $19) 29... Qxh4+ {[%emt 0:00:07]} 30. Neg3 {[%emt 0:01:12][%cal Rc5f8]} ({Weaker is} 30. Qf2 Qxf2+ 31. Kxf2 e4 $15) 30... Rxf3 {[%emt 0:04:35]} (30... Qd8 31. Qxa7 Bb7) 31. Qc7 {[%emt 0:01:33][%csl Gh5,Gh6][%cal Rc7g7] White is clearly winning.} Qg5 {[%emt 0:01:09]} 32. Qxb8 {[%emt 0:02:46]} Qe3+ {[%emt 0:01:34]} 33. Ne2 {[%emt 0:00:02]} Rf8 {[%emt 0:01:16]} 34. Qd6 {[%emt 0:01:35][%cal Rd6f8]} Kg8 {[%emt 0:02:23]} 35. Qc7 {[%emt 0:01:24][%csl Gh5,Gh6][%cal Rc7g7]} Qxh6 {[%emt 0:03:19]} 36. Qxe5 {[%emt 0:00:19]} Bd7 {[%emt 0:00:48]} 37. Nef4 {[%emt 0:00:30]} Rf7 {[%emt 0:02:28]} 38. g5 {[%emt 0:01:01][%cal Bg4g5,Bg5f6][%mdl 32]} Qf8 {[%emt 0:00:02]} 39. Nf6+ {[%emt 0:00:19]} Rxf6 {[%emt 0:01:20]} 40. gxf6 {[%emt 0:00:14] Weighted Error Value: White=0.36/Black=0.67} 1-0